Cogmind - Beta 13 @@@ ROGUE MODE // 2024.03.08 @ 13:01:44 Player: MAC-Bot 2145 Result: Destroyed by G-34 Mercenary with Small Laser Performance ------------- Evolutions (1) 500 Regions Visited (2) 400 Robots Destroyed (7) 35 Value Destroyed (188) 188 Prototype IDs (1) 20 Alien Tech Used (0) 0 Bonus (0) 0 TOTAL SCORE: 1143 Bonus ------- None Cogmind --------- Core Integrity 0/400 Matter 300/300 Energy 99/100 System Corruption 0% Temperature Cool (6) Movement Core (50) Location -9/Materials Parts ------- > --- POWER (1) -------- (None) > --- PROPULSION (2) --- (None) > --- UTILITY (4) ------ (None) > --- WEAPON (2) ------- (None) > --- INVENTORY (5) ---- Ion Engine Light Treads High-capacity Storage Unit Visual Processing Unit Particle Gun Peak State ------------ > --- POWER ------------ Improved Ion Engine > --- PROPULSION ------- Improved Treads Improved Treads > --- UTILITY ---------- Small Storage Unit Sensor Array Terrain Scanner Targeting Computer > --- WEAPON ----------- Particle Gun Advanced Beam Cannon > --- INVENTORY -------- Ion Engine Light Ion Engine Light Treads High-capacity Storage Unit Visual Processing Unit Medium Laser Particle Gun Light Assault Rifle [Rating: 16] Favorites ----------- Power Light Ion Engine Engine Light Ion Engine Propulsion Improved Treads Treads Improved Treads Wheel Compact Wheel Utility Small Storage Unit Device Sensor Array Storage Small Storage Unit Processor Targeting Computer Weapon Particle Gun Energy Gun Particle Gun Energy Cannon Advanced Beam Cannon Ballistic Gun Light Assault Rifle Build | -11 -10 -9 ------- Run | Yrd Mat Mat Slots Evolved 2 | . . 2 Power . | . . . Propulsion . | . . . Utility 2 | . . 2 Weapon . | . . . Parts Attached 16 | 6 4 6 Power 2 | 1 . 1 Engine 2 | 1 . 1 Core . | . . . Reactor . | . . . Propulsion 4 | 2 2 . Treads 2 | . 2 . Leg . | . . . Wheel 2 | 2 . . Hover . | . . . Flight . | . . . Utility 6 | 1 1 4 Device 2 | . 1 1 Storage 3 | 1 . 2 Processor 1 | . . 1 Hackware . | . . . Protection . | . . . Artifact . | . . . Weapon 4 | 2 1 1 Energy Gun 2 | 1 1 . Energy Cannon 1 | . . 1 Ballistic Gun 1 | 1 . . Ballistic Cannon . | . . . Launcher . | . . . Special Weapon . | . . . Impact Weapon . | . . . Slashing Weapon . | . . . Piercing Weapon . | . . . Special Melee Weapon . | . . . Unidentified Prototypes 1 | . . 1 Parts Lost 10 | . 1 9 Power 1 | . . 1 Propulsion 3 | . 1 2 Utility 4 | . . 4 Weapon 2 | . . 2 Highest Loss Streak 9 | . 1 9 To Critical Strikes . | . . . Average Slot Usage (%) 93 | . 94 93 Engine 11 | . 14 10 Treads 13 | . 1 20 Wheel 9 | . 26 . Device 16 | . 9 19 Storage 11 | . 14 10 Processor 6 | . . 10 Energy Gun 12 | . 16 10 Energy Cannon 6 | . . 10 Ballistic Gun 4 | . 11 . Naked Turns 19 | . . 19 Heaviest Build 21 | 11 14 21 Greatest Support 46 | 26 46 46 Greatest Overweight (x) 5 | 3 . 5 Average Overweight (x) . | . . . Largest Inventory Capacity 20 | 8 8 20 Average Capacity 7 | 7 8 7 Most Carried 8 | 7 8 8 Average Carried 6 | 3 7 5 Final Capacity 8 | 8 8 5 Final Carried 6 | 6 6 5 Class Distribution -------------------- 100% | Mutant Dominant Class ---------------- Mutant | -10/Materials Mutant | -9/Materials Resources | -11 -10 -9 ----------- Run | Yrd Mat Mat Matter Collected 358 | 260 38 60 Remotely . | . . . Salvage Created 213 | . 101 112 Parts 12 | . 2 10 Haulers Intercepted . | . . . Recyclers Shooed . | . . . Parts Field Recycled . | . . . Retrieved Matter . | . . . Parts Self-Destructed . | . . . Prevented . | . . . Kills | -11 -10 -9 ------- Run | Yrd Mat Mat Combat Hostiles Destroyed 5 | . 2 3 Guns 1 | . 1 . Cannons 3 | . . 3 Classes Destroyed 4 | . 1 3 Watcher 2 | . . 2 Swarmer 2 | . . 2 Grunt 2 | . 2 . Sentry 1 | . . 1 Best Kill Streak 2 | . 2 2 Combat Bots Only 2 | . 2 2 Max Kills in Single Turn 1 | . 1 1 Gunslinging . | . . . Exploded . | . . . Melee . | . . . Uniques/NPCs Destroyed . | . . . Combat | -11 -10 -9 -------- Run | Yrd Mat Mat Hostile Shots Fired 167 | . 11 156 Missed 46 | . 3 43 Damage Taken 1333 | . 104 1229 Core 432 | . 24 408 Absorbed by Shields . | . . . Core Remaining (%) 95 | 100 90 . Volleys Fired 19 | . 9 10 Largest 2 | . 2 2 Hottest 133 | . 115 133 Shots Fired 38 | . 18 20 Gun 28 | . 18 10 Cannon 10 | . . 10 Launcher . | . . . Special . | . . . Kinetic 2 | . 2 . Thermal 36 | . 16 20 Explosive . | . . . Electromagnetic . | . . . Robot Hit Streak 6 | . 5 6 Robot Miss Streak 3 | . 3 3 Penetration Max . | . . . Secondary Targets . | . . . Shots Hit Robots 24 | . 13 11 Core Hits 12 | . 5 7 Critical Kills . | . . . Critical Parts Destroyed . | . . . Critical Strikes . | . . . Melee Attacks . | . . . Impact . | . . . Slashing . | . . . Piercing . | . . . Sneak Attacks . | . . . Combat Hostiles . | . . . Follow-up Attacks . | . . . Damage Inflicted 369 | . 169 200 Guns 242 | . 165 77 Cannons 123 | . . 123 Explosions . | . . . Melee . | . . . Ramming 4 | . 4 . Kinetic 9 | . 9 . Thermal 356 | . 156 200 Explosive . | . . . Electromagnetic . | . . . Impact . | . . . Slashing . | . . . Piercing . | . . . Highest Corruption . | . . . Average Corruption . | . . . Corruption Purged . | . . . Corruption Blocked . | . . . Overload Shots . | . . . Overflow Damage . | . . . Projectiles . | . . . Explosions . | . . . Melee . | . . . Knockbacks . | . . . Impact . | . . . Kinetic . | . . . Secondary . | . . . Self-Inflicted Damage 2 | . 2 . Shots . | . . . Rammed 1 | . 1 . Targets Rammed 1 | . 1 . Kicked . | . . . Crushed . | . . . Highest Temperature 339 | . 283 339 Average Temperature 130 | . 140 123 Received Heat Transfer 510 | . 57 453 Effects 5 | . . 5 Energy Bleed 1 | . . 1 Interference 3 | . . 3 Damage (minor) 1 | . . 1 Siege Activations . | . . . Robots Corrupted . | . . . Combat Hostiles . | . . . Parts Fried . | . . . Impact Corruptions . | . . . Robots Melted 1 | . 1 . Combat Hostiles 1 | . 1 . Parts Melted 3 | . 1 2 Heat Transferred 851 | . 444 407 Parts Sabotaged . | . . . Parts Stolen . | . . . Parts Stripped . | . . . Power Chain Reactions . | . . . Alert | -11 -10 -9 ------- Run | Yrd Mat Mat Peak Influence 109 | . 85 109 Initial 35 | . . 35 Average 34 | . 19 46 Maximum Alert Level . | . . . Low Security (%) 100 | 100 100 100 Level 1 . | . . . Level 2 . | . . . Level 3 . | . . . Level 4 . | . . . Level 5 . | . . . High Security . | . . . Max Security . | . . . Squads Dispatched 1 | . . 1 Investigation . | . . . Extermination . | . . . Reinforcement 1 | . . 1 Assault . | . . . Garrison . | . . . Intercept . | . . . Searches Triggered . | . . . Construction Impeded . | . . . Haulers Reinforced . | . . . Active Scanning Responses . | . . . Cargo Convoy Interrupts . | . . . Stealth | -11 -10 -9 --------- Run | Yrd Mat Mat Distress Signals 2 | . 2 . Communications Jammed . | . . . Distress Signals . | . . . Times Spotted 24 | . 5 19 Peak Tracking Total 12 | . 4 12 Tactical Retreats 3 | . . 3 Traps | -11 -10 -9 ------- Run | Yrd Mat Mat Traps Triggered . | . . . Indirectly . | . . . Trap Hack Attempts . | . . . Triggered . | . . . Disarmed . | . . . Reprogrammed . | . . . Reused . | . . . Traps Extracted . | . . . Installed . | . . . Triggered . | . . . Machines | -11 -10 -9 ---------- Run | Yrd Mat Mat Machines Disabled 1 | . 1 . Max in Single Turn 1 | . 1 . Machines Repaired . | . . . Machines Dismantled . | . . . Machines Sabotaged . | . . . Overloaded Fab Kills . | . . . Hacking | -11 -10 -9 --------- Run | Yrd Mat Mat Machines Accessed 1 | . 1 . Terminals 1 | . 1 . Fabricators . | . . . Repair Stations . | . . . Recycling Units . | . . . Scanalyzers . | . . . Garrison Access . | . . . Total Hacks 2 | . 2 . Successful 2 | . 2 . Failed . | . . . Catastrophic . | . . . Database Lockouts . | . . . Manual . | . . . Terminals 2 | . 2 . Fabricators . | . . . Repair Stations . | . . . Recycling Units . | . . . Scanalyzers . | . . . Garrison Access . | . . . Terminal Hacks 2 | . 2 . Record 2 | . 2 . Fabricator Hacks . | . . . Repair Station Hacks . | . . . Recycling Unit Hacks . | . . . Scanalyzer . | . . . Garrison Access Hacks . | . . . Unauthorized Hacks . | . . . Terminals . | . . . Fabricators . | . . . Repair Stations . | . . . Recycling Units . | . . . Scanalyzers . | . . . Garrison Access . | . . . Data Cores Recovered . | . . . Used . | . . . Hacking Detections . | . . . Full Trace Events . | . . . Feedback Events . | . . . Feedback Blocked . | . . . Robot Schematics Acquired . | . . . Robots Built . | . . . Authchips . | . . . Time . | . . . Total Robot Build Rating . | . . . Part Schematics Acquired . | . . . Parts Built . | . . . Authchips . | . . . Time . | . . . Total Part Build Rating . | . . . Parts Repaired . | . . . Time . | . . . Parts Recycled . | . . . Recycled Matter . | . . . Retrieved Matter . | . . . Retrieved Components . | . . . Parts Scanalyzed . | . . . Part Schematics Acquired . | . . . Parts Damaged . | . . . Bothacking | -11 -10 -9 ------------ Run | Yrd Mat Mat Used RIF Installer . | . . . Robots Hacked . | . . . Non-combat . | . . . Combat . | . . . Robot Hacks Applied . | . . . Relay Couplers Released . | . . . Fabnet Peak Effective % . | . . . Robots Rewired . | . . . Allies Hacked . | . . . Hacks Repelled . | . . . Allies | -11 -10 -9 -------- Run | Yrd Mat Mat Total Allies . | . . . Largest Group . | . . . Highest-Rated Group . | . . . Highest-Rated Ally . | . . . Total Orders . | . . . Ally Attacks . | . . . Total Damage . | . . . Kills . | . . . Allies Corrupted . | . . . Allies Melted . | . . . Intel | -11 -10 -9 ------- Run | Yrd Mat Mat Robot Analysis Total . | . . . Derelict Logs Recovered . | . . . Drone Launches . | . . . Drone Recoveries . | . . . Exploration | -11 -10 -9 ------------- Run | Yrd Mat Mat Turns Passed 810 | 65 256 489 Spaces Moved 541 | 46 229 266 Core 59 | 12 . 47 Treads 226 | . 7 219 Legs . | . . . Wheels 256 | 34 222 . Hover . | . . . Flight . | . . . Fastest Speed 50 | 50 90 50 Average Speed 118 | 103 92 143 Slowest Speed 300 | 200 160 300 Overloaded Moves . | . . . Propulsion Burnouts . | . . . Robots Hopped . | . . . Cave-ins Triggered . | . . . Exploration Rate (%) 23 | 4 43 24 Regions Visited 2 Branch Regions . Pre-discovered Areas . | . . . Known Exits Taken . | . . . Unknown Exits Taken 2 | 1 1 . Scrap Searched . | . . . Spaces Dug . | . . . Terrain Destroyed . | . . . Melee . | . . . Projectile . | . . . AOE . | . . . Terrain Rammed . | . . . Walls Destroyed . | . . . Machines Disabled . | . . . Actions | -11 -10 -9 --------- Run | Yrd Mat Mat Total 676 | 63 260 353 Wait 68 | . 2 66 Move 539 | 45 228 266 Hop . | . . . Pick Up 25 | 12 9 4 Fast Attach . | . . . Attach 11 | 6 3 2 Detach . | . . . Swap 5 | . 1 4 Drop 8 | . 7 1 Fire 19 | . 9 10 Melee . | . . . Ram 1 | . 1 . Kick . | . . . Crush . | . . . Escape Stasis . | . . . Rewire . | . . . Trap . | . . . Miscellaneous . | . . . Route ------- -11/Scrapyard -10/Materials -9/Materials History --------- Turn | Location | Event 16 | -11/Scrapyard | Discovered new exit (range 16) 66 | -11/Scrapyard | Entered Materials 299 | -10/Materials | Discovered new exit (range 7) 302 | -10/Materials | Build established: Mutant 322 | -10/Materials | Entered another Materials area 322 | -9/Materials | Evolved 2 slots: Utility x2 779 | -9/Materials | Core integrity fell below 50% 790 | -9/Materials | Core integrity fell below 20% 811 | -9/Materials | Destroyed by G-34 Mercenary with Small Laser Last Messages --------------- Critical hit (Burn: +37). Overheating: System interference. Targeting Computer temporarily disabled. Overheating: Energy bleed (-29). Imp. Treads destroyed. Particle Gun destroyed. Y-45 Defender suffers critical hit (Destroy). Y-45 Defender destroyed. Critical hit (Burn: +37). K-01 Serf destroyed. Imp. Treads destroyed. Imp. Ion Engine destroyed. Adv. Beam Cannon destroyed. S-10 Pest destroyed. Terrain Scanner destroyed. A-02 Transporter destroyed. Targeting Computer destroyed. Sml. Storage Unit destroyed. Terminal disabled. Connecting with Terminal... Map ----- +----------------------------------------------------+ | ???# ?# #? ????????????????????????? | | ???# # #? ""?????????????????????????? | | ???+ """ # # ""?????????????????????????? | | ???# """ # # """ """ ???????????????????????? | | ???? """ # + "T #??????????????????????? | | ???# ? # # """ #?????????????????????? | | ???# ###??### # ????????????????????????? | | ???##???????# #?#######????????????????????????? | | ????????????# %%##############???????????????????? | | ????????????# ?????????????????? | | ????????????# ?????????????????? | | ????????????# ?????????????????? | | ????????????# ############+##??????????????????? | | ????????????#*= #???#????????????????????????????? | | ????????????#%! #????????????????????????????????? | | ????????????#![ #??#????? ???????????????????????? | | ??? ??????#?#%= #????? ??????????????????????????? | | ????????????#[ #???????? ???????????????????????? | | ???#????????# #?????? ?????????????????????????? | | ?#??????????# ###??????????????????????????????? | | ????????????#[! #????????????????????????????????? | | ????????????#]]=#??????????#?????????????????????? | | ????????????#%][#?????????#??????????????????????? | | ?????????#?##%=[##????#??????????????????????????? | | ????########!=**[###########?????????????????????? | | ? = [ Y g @ #?????????????????????? | | g gg #?????????????????????? | | ? g #?????????????????????? | | ?########### ####### +?????????????????????? | | ???????????###+###?????# #?????????????????????? | | ???????????????????????# #####?????????????????? | | ????????????????#??????# //#?????????????????? | | ????????????????# ????# //#?????????????????? | | ????????????????# ??# [[#?????????????????? | | ????????????????#! """ # [[#?????????????????? | | ????????????????# """ + ]]#?????????????????? | | ????????????????# """ # ]]#?????????????????? | | ????????????????# ??# #####?????????????????? | | ????????????????###???## ##????????????????????? | | ????????????????####### #####????????????????? | | ????????? ?????????? | | ????????? T ?????????? | | ????????? ?????????? | | ??????????##+########## ############?????????? | | ??????????????????????###+###????????????????????? | | ?????????????????????????????????????????????????? | | ?????????????????????????????????????????????????? | | ?????????????????????????????????????????????????? | | ?????????????????????????????????????????????????? | | ?????????????????????????????????????????????????? | +----------------------------------------------------+ Best States ------------- Heat Dissipation 28 Energy Generation 12 Energy Capacity 265 Matter Stores 300 Matter Capacity 300 Sight Range 16 Robot Scan Range 14 Terrain Scan Range 14 Terrain Scan Density 10 Evasion (%) 50 Targeting Accuracy 5 Recoil Reduction 2 Item Schematics ----------------- None Robot Schematics ------------------ None Fabricated ------------ Nothing Alien Tech Used ----------------- None Achievements -------------- None Challenges ------------ None Game ------ Seed TiamatCentriumMinigun Manual? 0 Play Time 00:11:50 Cumulative 56.1 hours Start 2024.03.08 @ 12:49:33 End 2024.03.08 @ 13:01:44 Sessions 1 Manual Loads 0 Difficulty Rogue Special Mode None Game No. 46 Rogue 46 Adventurer 0 Explorer 0 Win Type - Total 0 Types 0/0/0/0/0/0/0/0/0 Lore% 21 Gallery% 20 Achievement% 19 Wizard Run 0 Options --------- Layout 1 ASCII 0 Keyboard 0 Movement Numpad Keybinds 0 Fullscreen 1 Font 24/Smallcaps Map View 50x35 Zoom Use 0% Tactical HUD 0 Map Filters NONE Filters NONE Steam 1 RUN: 027ad61f-58f7-430a-9e95-25d5e5b8167e